bitfinex/quotes_ETHUSD_20251224
["timestamp","ask_amount","ask_price","bid_price","bid_amount"]
[1766571287184,0.892,2930.6,2929.9,0.998]
[1766571287185,0.00705103,2930.4,2929.9,0.998]
[1766571287387,0.00705103,2930.5,2930.1,0.998]
[1766571287684,2.949981,2930.5,2930.1,0.998]
[1766571287884,0.00705103,2930.4,2930.1,0.998]
[1766571290675,0.00705103,2930.5,2930.1,0.998]
[1766571291481,2.918006,2930.5,2930.1,0.998]
[1766571291683,0.00705103,2930.4,2930.1,0.998]
[1766571291848,4.30419591,2930.7,2930.1,0.998]
[1766571291849,2.918006,2930.5,2930.1,0.998]
[1766571292055,0.00705103,2930.4,2930.1,0.998]
[1766571292385,2.928868,2930.5,2930.1,0.998]
[1766571292597,0.00705103,2930.4,2930.1,0.998]
[1766571292763,2.925868,2930.5,2930.1,0.998]
[1766571292965,0.00705103,2930.4,2930.1,0.998]
[1766571293165,2.6305,2930.5,2930.1,0.998]
[1766571293376,0.00705103,2930.4,2930.1,0.998]
[1766571293559,2.984926,2930.5,2930.1,0.998]
[1766571293766,0.00705103,2930.4,2930.1,0.998]
[1766571293993,4.996926,2930.5,2929.7,0.998]
[1766571294199,0.00905103,2930.4,2929.8,0.998]
[1766571294497,0.002,2930.4,2929.8,0.998]
[1766571296967,0.002,2930.4,2929.9,0.998]
[1766571297811,0.002,2930.4,2930.1,0.998]
[1766571299368,0.002,2930.4,2929.6,3.43044479]
[1766571299568,0.002,2930.4,2929.7,0.998]
[1766571300466,0.002,2930.4,2929.5,0.893]
[1766571300666,0.892,2930.3,2929.4,0.998]
[1766571300914,0.00705103,2930.2,2929.5,4.41154673]
[1766571301069,0.00705103,2930.2,2929.6,0.998]
[1766571301269,0.00705103,2930.3,2929.6,0.998]
[1766571301577,0.43136067,2930.2,2929.6,0.998]
[1766571302403,0.00705103,2930.3,2929.7,0.9164]
[1766571302605,0.002,2930.4,2929.7,0.95053318]
[1766571302898,0.00905103,2930.4,2929.7,0.95053318]
[1766571304085,3.42155617,2930.4,2929.7,0.95053318]
[1766571304291,0.00905103,2930.4,2929.7,0.95053318]
[1766571304493,0.44039933,2930.4,2929.7,0.95053318]
[1766571305497,0.002,2930.4,2929.8,0.9164]
[1766571305672,0.002,2930.4,2930.0,0.9164]
[1766571306495,3.41451184,2930.4,2930.0,0.9164]
[1766571306673,0.00705103,2930.3,2930.0,0.9164]
[1766571306878,0.00705103,2930.3,2929.7,0.9164]
[1766571307280,0.34920732,2930.3,2929.7,0.9164]
[1766571307508,0.34920732,2930.3,2929.6,0.001]
[1766571307715,3.7618593,2930.3,2929.6,0.001]
[1766571308219,4.6538593,2930.3,2929.6,0.001]
[1766571308413,22.560259,2930.2,2929.0,0.9164]
[1766571308721,20.154968,2930.0,2929.0,0.9164]
[1766571308915,0.00705103,2929.9,2929.0,3.41412243]
[1766571309111,0.892,2929.9,2929.1,0.9164]
[1766571309418,0.00705103,2929.8,2929.1,0.9164]
[1766571310116,0.892,2929.9,2929.2,0.03413901]
[1766571310290,1.32954143,2929.9,2929.3,0.9164]
[1766571310609,0.89905103,2929.9,2929.3,0.9164]
[1766571310815,4.31215581,2929.9,2928.9,0.9164]
[1766571311015,7.72526059,2929.9,2928.9,0.9164]
[1766571311187,7.71820956,2929.9,2928.9,0.9164]
[1766571311386,0.77887199,2929.8,2929.0,0.95054134]
[1766571312020,1.67087199,2929.8,2929.0,0.95054134]
[1766571312390,5.08415171,2929.8,2929.0,0.95054134]
[1766571313533,5.08415171,2929.8,2929.0,4.36466527]
[1766571313534,1.67087199,2929.8,2929.0,4.36466527]
[1766571313705,1.67087199,2929.8,2929.0,0.95054134]
[1766571314020,0.89905103,2929.8,2929.0,0.95054134]
[1766571314196,0.89905103,2929.8,2929.0,4.36466058]
[1766571314399,0.00705103,2929.8,2929.1,0.9164]
[1766571314726,3.4202658,2929.8,2929.2,0.03413901]
[1766571315013,4.3122658,2929.8,2929.2,0.03413901]
[1766571315221,0.77253636,2929.7,2929.2,0.03413901]
[1766571315414,0.00705103,2929.6,2929.1,0.9164]
[1766571315717,0.00705103,2929.6,2928.7,0.9164]
[1766571316290,3.4135518,2929.5,2928.7,0.9164]
[1766571316492,0.00705103,2929.6,2928.8,0.95054367]
[1766571316493,3.42050537,2929.6,2928.8,0.95054367]
[1766571316693,0.892,2929.5,2928.8,0.95054367]
[1766571316915,0.00705103,2929.4,2928.8,0.9164]
[1766571317114,0.00705103,2929.4,2928.6,0.001]
[1766571318629,3.41378486,2929.3,2928.6,0.001]
[1766571318828,0.00705103,2929.2,2928.6,0.001]
[1766571319005,0.69050575,2929.2,2928.6,0.001]
[1766571320025,11.352158,2929.1,2928.5,0.001]
[1766571320197,0.00705103,2929.0,2928.5,0.9174]
[1766571320397,0.89905103,2929.3,2928.7,0.9164]
[1766571320596,0.00705103,2929.2,2928.7,0.9164]
[1766571320994,3.42096801,2929.2,2928.5,0.001]
[1766571321238,0.00705103,2929.2,2928.5,0.001]
[1766571321426,0.4383382,2929.2,2928.5,0.03514717]
[1766571321790,3.85225298,2929.2,2928.5,0.9174]
[1766571323032,4.74425298,2929.2,2928.5,0.9174]
[1766571323211,4.74425298,2929.2,2928.5,0.001]
[1766571323534,8.19226776,2929.2,2928.3,0.9164]
[1766571323742,0.81922678,2929.1,2928.4,0.03414834]
[1766571323895,0.04115103,2929.0,2928.4,0.03414834]
[1766571324522,0.93315103,2929.1,2928.5,0.9164]
[1766571324751,0.892,2929.1,2928.5,0.9164]
[1766571324905,0.892,2929.2,2928.5,0.9164]
[1766571325109,0.04115103,2929.1,2928.5,0.9164]
[1766571325626,0.04115103,2929.3,2928.5,0.9164]
[1766571325927,0.43468836,2929.2,2928.5,0.9164]
[1766571326263,0.04115103,2929.1,2928.5,0.9164]
[1766571326435,0.04115103,2929.1,2928.2,0.9164]
[1766571326631,0.04115103,2929.1,2928.3,0.0341495]
[1766571326834,0.04115103,2929.1,2928.4,4.33121969]
[1766571327039,0.43012507,2929.1,2928.5,0.03414717]
[1766571327536,0.43012507,2929.1,2928.5,0.95054717]
[1766571327732,0.04115103,2929.1,2928.5,0.95054717]
[1766571329732,0.04115103,2929.1,2928.6,0.9164]
[1766571330139,0.04115103,2929.1,2928.4,0.9164]
[1766571330542,0.04115103,2929.1,2928.5,0.001]
[1766571331442,0.04115103,2929.1,2928.5,0.9129]
[1766571333646,0.04115103,2929.1,2928.3,0.9119]
[1766571333846,0.04315103,2929.2,2928.3,0.9119]
[1766571334221,3.45711537,2929.2,2928.3,4.32679254]
[1766571335843,6.87107971,2929.2,2928.3,0.9119]
[1766571336046,5.357824,2929.1,2928.3,0.9119]
[1766571336227,1.2599263,2929.0,2928.2,3.4150112]
[1766571336413,0.04115103,2929.0,2928.2,3.4150112]
[1766571336618,0.04115103,2929.1,2928.2,3.4150112]
[1766571336818,0.04115103,2929.1,2928.3,4.406532]
[1766571337051,0.04115103,2929.1,2928.4,0.9916]
[1766571337347,0.04115103,2929.1,2928.1,0.9916]
[1766571337523,4.23151811,2929.1,2928.2,3.41506107]
[1766571337727,4.23151811,2929.1,2928.3,0.001]
[1766571339820,4.23151811,2929.1,2928.3,0.9926]
[1766571342047,1.709459,2929.1,2928.3,4.40753591]
[1766571342249,1.709459,2929.1,2928.3,4.40751323]
[1766571342427,1.709459,2929.1,2928.3,5.23385768]
[1766571343046,1.709459,2929.1,2928.4,0.9916]
[1766571343850,5.12349442,2929.1,2928.4,0.9916]
[1766571345348,5.12449442,2929.1,2928.4,0.9916]
[1766571347652,5.12449442,2929.1,2928.3,0.001]
[1766571348352,5.12449442,2929.1,2928.3,0.9926]
[1766571349356,4.23249442,2929.1,2928.3,0.9926]
[1766571349574,0.893,2929.0,2928.3,0.9926]
[1766571349723,0.04115103,2928.9,2928.3,0.9926]
[1766571352154,0.893,2929.1,2928.4,0.9916]
[1766571352365,3.41595821,2929.2,2928.5,0.03414717]
[1766571352587,0.001,2929.1,2928.6,0.9916]
[1766571355174,0.001,2929.1,2928.3,0.001]
[1766571355379,29.275673,2929.0,2928.2,0.9916]
[1766571355568,25.002585,2928.9,2928.2,0.9916]
[1766571355876,23.806427,2928.9,2928.3,0.0341495]
[1766571356377,23.015028,2928.9,2928.3,0.0341495]
[1766571356958,0.68309164,2929.0,2928.3,0.0341495]
[1766571357161,4.09728403,2929.0,2928.3,1.0257495]
[1766571357363,3.41509091,2929.1,2928.3,1.0257495]
[1766571357873,6.82918182,2929.1,2928.3,1.0257495]
[1766571359577,6.82918182,2929.1,2928.3,0.9916]
[1766571360083,0.001,2929.1,2928.4,0.03414834]
[1766571360278,0.001,2929.1,2928.5,0.9916]
[1766571360579,0.77238466,2929.0,2928.5,0.9916]
[1766571362162,0.001,2929.1,2928.5,0.9916]
[1766571362677,5.355597,2929.1,2928.3,0.001]
[1766571362982,9.355597,2929.1,2928.4,0.9186]
[1766571363166,9.355597,2929.1,2928.6,0.9186]
[1766571363477,8.639053,2929.1,2928.6,0.9186]
[1766571363663,1.54688996,2929.0,2928.6,0.9186]
[1766571363863,15.488714,2929.1,2928.6,0.9186]
[1766571364384,3.41413451,2929.0,2928.3,0.9196]
[1766571364680,3.4140879,2929.1,2928.4,0.95274834]
[1766571364681,3.41408182,2929.1,2928.4,0.95274834]
[1766571365258,3.41408182,2929.1,2928.4,0.9186]
[1766571366386,3.188409,2929.1,2928.4,0.9186]
[1766571366793,2.224409,2929.1,2928.5,0.95274717]
[1766571367159,2.224409,2929.1,2928.5,1.38961683]
[1766571368188,5.63842778,2929.1,2928.5,1.39061683]
[1766571368487,3.41601878,2929.1,2928.5,1.35646966]
[1766571368661,3.41601878,2929.1,2928.5,0.9196]
[1766571369270,0.002,2929.1,2928.6,0.034146]
[1766571369468,0.002,2929.1,2928.6,0.952746]
[1766571370373,0.002,2929.1,2928.6,0.9186]
[1766571373801,0.002,2929.1,2928.7,0.03414484]
[1766571374201,0.002,2929.1,2928.7,0.95274484]
[1766571374969,0.002,2929.1,2928.7,1.10337448]
[1766571375169,0.002,2929.1,2928.7,0.9186]
[1766571377102,0.002,2929.1,2928.5,0.895]
[1766571377472,0.002,2929.1,2928.5,0.001]
[1766571379008,0.002,2929.1,2928.5,0.03514717]
[1766571379903,0.002,2929.1,2928.5,0.9196]
[1766571380104,0.002,2929.1,2928.6,0.034146]
[1766571380308,0.68517036,2929.1,2928.6,0.034146]
[1766571380486,4.09919891,2929.1,2928.6,0.034146]
[1766571381810,4.09919891,2929.1,2928.5,0.95374717]
[1766571383711,0.002,2929.1,2928.5,0.95374717]
[1766571384619,3.41602923,2929.1,2928.5,0.95374717]
[1766571385929,0.002,2929.1,2928.5,0.95374717]
[1766571388611,0.002,2929.1,2928.5,0.03514717]
[1766571388786,0.002,2929.1,2928.5,0.001]
[1766571391017,0.780555,2929.1,2928.5,0.001]
[1766571393321,3.41413451,2929.0,2928.5,0.001]
[1766571399799,0.780555,2929.1,2928.5,0.001]
[1766571400125,4.19457727,2929.1,2928.5,0.001]
[1766571401826,7.60859954,2929.1,2928.5,0.001]
[1766571402015,0.76105995,2929.0,2928.5,0.001]
[1766571403430,4.17520147,2929.0,2928.5,0.001]
[1766571407233,0.76105995,2929.0,2928.5,0.001]
[1766571407530,4.19461223,2929.1,2928.5,0.001]
[1766571410946,0.002,2929.1,2928.5,1.02134717]
[1766571414652,3.41378486,2929.3,2928.6,0.9862]
[1766571414949,3.41378486,2929.3,2928.7,1.02034484]
[1766571415514,4.4934438,2930.0,2928.9,0.9862]
[1766571415752,11.188482,2929.8,2929.0,1.02034134]
[1766571415956,5.8040974,2929.7,2928.6,0.9862]
[1766571416254,4.4934438,2929.7,2928.6,0.9862]
[1766571417148,6.82687056,2929.6,2928.6,0.9862]
[1766571418749,6.82687056,2929.6,2928.6,3.41459681]
[1766571418935,3.41343528,2929.6,2928.7,0.9862]
[1766571419146,3.41343528,2929.6,2928.8,0.03414367]
[1766571419324,3.41343528,2929.6,2928.9,0.9862]
[1766571419525,3.41343528,2929.6,2929.0,1.02034134]
[1766571420475,3.41343528,2929.6,2928.6,4.40074885]
[1766571420681,3.41343528,2929.6,2928.7,3.41446263]
[1766571420973,6.82687056,2929.6,2928.6,4.40072676]
[1766571421178,6.82687056,2929.6,2928.8,0.9862]
[1766571422073,13.869183,2929.5,2928.8,0.9862]
[1766571422369,11.32078044,2929.4,2928.6,0.9266]
[1766571422574,6.82733664,2929.4,2928.6,0.9266]
[1766571422779,12.34594655,2929.4,2928.6,0.9266]
[1766571422967,1.23459466,2929.3,2928.6,0.9266]
[1766571423681,1.23459466,2929.3,2928.7,0.03414484]
[1766571424256,1.23459466,2929.3,2928.6,0.960746]
[1766571424454,4.64846768,2929.3,2928.7,0.03414484]
[1766571427277,4.64846768,2929.3,2928.6,0.9266]
[1766571428274,4.65046768,2929.3,2928.6,0.9266]
[1766571428888,0.90893288,2929.2,2928.5,0.001]
[1766571429584,0.90893288,2929.2,2928.4,0.894]
[1766571432667,3.41401795,2929.1,2928.4,0.894]
[1766571436290,3.41401795,2929.1,2928.4,0.895]
[1766571437486,4.3228894,2929.2,2928.5,0.96074717]
[1766571437991,0.90893288,2929.2,2928.5,0.96074717]
[1766571438290,4.32284572,2929.2,2928.5,0.96074717]
[1766571439691,0.90893288,2929.2,2928.5,0.96074717]
[1766571439875,3.41391436,2929.2,2928.5,0.96074717]
[1766571441289,3.41391436,2929.2,2928.5,0.9266]
[1766571441795,3.41391436,2929.2,2928.5,0.96074717]
[1766571444479,3.41391436,2929.2,2928.5,0.96174717]
[1766571445301,3.41391436,2929.2,2928.5,0.03514717]
[1766571445467,4.1896489,2929.2,2928.5,0.03514717]
[1766571445775,7.60356326,2929.2,2928.5,0.03514717]
[1766571446407,0.03414717,2929.1,2928.5,4.717e-05]
[1766571447498,0.03414717,2929.1,2928.5,0.92664717]
[1766571447799,0.03414717,2929.1,2928.5,0.96079434]
[1766571449004,3.44817811,2929.1,2928.5,0.96079434]
[1766571449182,4.30490813,2929.1,2928.5,0.96079434]
[1766571450403,4.30490813,2929.1,2928.5,0.92664717]
[1766571450575,4.30490813,2929.1,2928.5,0.96079434]
[1766571450873,3.44817811,2929.1,2928.5,0.96079434]
[1766571451301,0.03414717,2929.1,2928.5,0.96079434]
[1766571451699,3.44816783,2929.1,2928.5,0.96079434]
[1766571457191,3.44816783,2929.1,2928.5,0.92664717]
[1766571457490,3.44816783,2929.1,2928.5,4.717e-05]
[1766571457795,0.7791699,2929.0,2928.5,4.717e-05]
[1766571457981,0.03414717,2928.9,2928.5,4.717e-05]
[1766571458481,0.03414717,2929.0,2928.5,4.717e-05]
[1766571459915,3.44834502,2929.0,2928.5,4.717e-05]
[1766571461107,0.03414717,2929.0,2928.5,4.717e-05]
[1766571461816,0.03414717,2929.0,2928.5,0.93764717]
[1766571462322,0.03414717,2929.0,2928.5,0.97179434]
[1766571462622,0.03414717,2929.1,2928.5,0.93764717]
[1766571465797,3.44818391,2929.1,2928.5,0.93764717]
[1766571465996,4.22754558,2929.1,2928.5,0.93764717]
[1766571467220,0.81350884,2929.1,2928.5,0.93764717]
[1766571467419,0.81350884,2929.1,2928.5,0.97179434]
[1766571468412,4.2275485,2929.1,2928.5,0.93764717]
[1766571468616,4.2295485,2929.1,2928.5,0.93764717]
[1766571468817,0.51591485,2929.0,2928.5,0.93764717]
[1766571469020,0.03414717,2928.9,2928.5,0.93764717]
[1766571469316,0.03414717,2928.9,2928.5,4.717e-05]
[1766571470110,3.44841632,2928.9,2928.5,4.717e-05]
[1766571471092,3.44841632,2928.9,2928.3,0.00096943]
[1766571471416,0.73784827,2928.8,2928.3,0.00096943]
[1766571471614,0.03414717,2928.7,2928.3,0.00096943]
[1766571472625,0.08490678,2928.0,2927.8,0.001]
[1766571472920,0.08490678,2928.0,2927.5,3.41781713]
[1766571472921,0.77690678,2928.0,2927.5,3.41781713]
[1766571473100,0.77690678,2928.0,2927.5,5.31592781]
[1766571473298,0.77690678,2928.0,2927.6,0.03415767]
[1766571473490,0.77690678,2928.0,2927.6,0.9376]
[1766571474723,0.77690678,2928.0,2927.5,0.002]
[1766571474902,0.77690678,2928.0,2927.4,0.001]
[1766571474903,0.69,2927.8,2927.4,0.001]
[1766571475100,0.69,2927.8,2927.4,0.9386]
[1766571475419,0.78210678,2928.0,2927.5,0.9376]
[1766571476324,0.78210678,2928.0,2927.6,0.002]
[1766571476620,0.78210678,2928.0,2927.6,0.9396]
[1766571478194,0.03414717,2928.3,2927.7,0.9376]
[1766571478724,0.73134717,2928.3,2927.7,0.9376]
[1766571480223,0.73134717,2928.3,2927.7,0.927352]
[1766571481220,0.7075,2928.2,2927.7,0.927352]
[1766571481443,0.74164717,2928.1,2927.7,0.927352]
[1766571481797,0.03414717,2928.1,2927.7,0.927352]
[1766571482009,0.03414717,2928.2,2927.7,0.927352]
[1766571482628,0.74164717,2928.2,2927.7,0.927352]
[1766571483203,0.03414717,2928.2,2927.7,0.927352]
[1766571483425,1.05963919,2928.3,2927.7,0.927352]
[1766571483729,0.03414717,2928.3,2927.7,0.927352]
[1766571483944,0.03514717,2928.3,2927.7,0.927352]
[1766571484726,4.717e-05,2928.3,2927.6,3.41773081]
[1766571484906,0.7426,2928.7,2927.8,0.942]
[1766571485111,0.7426,2928.7,2928.0,0.942]
[1766571485310,0.7426,2928.7,2928.2,0.942]
[1766571489643,3.41438485,2928.8,2928.2,0.942]
[1766571489809,5.00843802,2928.8,2928.2,0.942]
[1766571490855,0.002,2928.7,2928.2,0.942]
[1766571491145,0.7446,2928.7,2928.2,0.942]
[1766571491742,0.002,2928.7,2928.2,0.942]
[1766571492037,0.7426,2928.6,2928.2,0.942]
[1766571493332,3.98992097,2928.6,2927.8,0.942]
[1766571493512,0.9337,2928.5,2927.8,0.942]
[1766571493844,0.9337,2928.5,2927.7,3.41559642]
[1766571496110,0.9337,2928.3,2927.6,0.002]
[1766571496427,0.9337,2928.3,2927.6,4.35976128]
[1766571496623,0.9337,2928.3,2927.7,0.0341565]
[1766571497727,0.9337,2928.3,2927.7,0.9761565]
[1766571497927,0.9337,2928.3,2927.7,1.75713636]
[1766571498124,3.41652443,2928.7,2927.8,0.942]
[1766571498427,0.002,2928.7,2927.8,0.942]
[1766571499252,3.41649861,2928.7,2927.8,0.942]
[1766571499550,3.41649861,2928.7,2927.9,0.942]
[1766571503158,0.002,2928.7,2928.0,0.942]
[1766571503551,0.9357,2928.7,2928.1,0.03415183]
[1766571503753,0.9357,2928.7,2927.9,3.41534785]
[1766571504048,0.9357,2928.7,2927.9,4.35734785]
[1766571504363,0.9357,2928.7,2928.0,0.50313917]
[1766571504726,0.9357,2928.7,2928.0,3.91842342]
[1766571505032,0.9357,2928.7,2928.1,0.03415183]
[1766571506358,0.9357,2928.7,2928.1,0.97615183]
[1766571514562,0.9357,2928.7,2928.1,0.942]
[1766571516565,0.9653,2928.6,2927.9,4.44265713]
[1766571516744,0.9653,2928.6,2927.9,1.02730276]
[1766571517966,0.9653,2928.6,2927.9,4.4427065]
[1766571518464,0.9653,2928.6,2927.9,2.02600276]
[1766571519264,0.9653,2928.6,2927.9,5.44137068]
[1766571520367,0.9653,2928.6,2928.0,0.9987]
[1766571521361,0.9653,2928.6,2928.0,3.41528503]
[1766571521570,0.9653,2928.6,2928.1,0.9987]
[1766571522362,0.002,2928.7,2928.1,0.9987]
[1766571522533,6.45,2928.9,2928.0,4.29049057]
[1766571522736,3.41517865,2929.0,2928.1,3.415138]
[1766571522938,0.894,2929.0,2928.2,0.9987]
[1766571523138,0.98294259,2928.9,2928.2,0.9987]
[1766571523851,0.894,2929.0,2928.2,0.9987]
[1766571524165,0.9653,2928.9,2928.2,0.9987]
[1766571525773,4.37955984,2928.9,2928.2,0.9987]
[1766571525972,0.9653,2928.8,2928.2,0.9987]
[1766571536278,0.9653,2928.7,2928.2,0.9987]
[1766571536456,1.74479696,2928.7,2928.2,0.9987]
[1766571539780,0.77949696,2928.7,2928.2,0.9987]
[1766571539980,0.9653,2928.6,2928.2,0.9987]
[1766571542914,0.9653,2928.6,2928.1,0.001]
[1766571543056,0.9679,2928.2,2927.6,0.002]
[1766571543564,0.9679,2928.2,2927.7,3.41559311]
[1766571543759,0.9679,2928.2,2927.8,0.03415533]
[1766571544067,0.9679,2928.2,2927.6,0.002]
[1766571544775,0.9679,2928.2,2927.6,0.9055]
[1766571545685,0.9679,2928.2,2927.6,4.32125887]
[1766571546254,1.02542892,2928.4,2927.7,0.9376565]
[1766571546480,0.9679,2928.6,2927.7,0.9376565]
[1766571546664,0.9679,2928.6,2927.7,0.95814236]
[1766571546862,0.9679,2928.5,2927.7,0.95814236]
[1766571547086,0.9679,2928.5,2927.9,0.9035]
[1766571547286,0.9679,2928.5,2928.0,0.937653]
[1766571547990,0.9679,2928.5,2927.7,0.9035]
[1766571548788,0.9679,2928.5,2927.7,4.31908702]
[1766571549294,0.9679,2928.4,2927.7,4.31908702]
[1766571549494,0.9679,2928.3,2927.7,4.31908702]
[1766571550285,0.9679,2928.3,2927.7,6.83123753]
[1766571550486,0.9679,2928.3,2927.8,0.9035]
[1766571551468,0.9679,2928.3,2927.6,3.41769933]
[1766571551675,0.9679,2928.3,2927.6,0.002]
[1766571551873,0.9679,2928.1,2927.6,0.002]
[1766571552273,0.9679,2928.1,2927.6,3.41775736]
[1766571553977,0.9679,2928.1,2927.6,0.002]
[1766571555087,1.02544645,2928.5,2927.6,0.9055]
[1766571555260,1.02544645,2928.5,2927.7,0.9376565]
[1766571555261,1.91844645,2928.5,2927.7,0.9376565]
[1766571555465,0.63010055,2928.4,2927.7,0.9376565]
[1766571556188,0.63010055,2928.4,2927.8,0.9035]
[1766571556794,0.9679,2928.3,2927.8,0.03415533]
[1766571559400,0.9679,2928.3,2927.7,0.9035]
[1766571563301,0.9679,2928.3,2927.6,0.002]
[1766571563302,0.9679,2928.2,2927.6,0.002]
[1766571563493,0.9679,2928.0,2927.5,0.001]
[1766571564050,0.9679,2927.9,2927.3,0.001]
[1766571564593,0.9679,2927.8,2927.3,0.001]
[1766571565572,1.99352524,2927.8,2927.3,0.001]
[1766571565774,0.9679,2927.7,2927.3,0.001]
[1766571565972,1.16725252,2927.7,2927.3,0.001]
[1766571566573,0.9679,2927.7,2927.3,0.001]
[1766571569404,0.9679,2927.7,2927.1,3.41733739]
[1766571569778,0.9679,2927.7,2927.1,0.001]
[1766571570905,0.9679,2927.7,2927.1,0.0351635]
[1766571571209,0.893,2928.0,2927.1,0.9386635]
[1766571571408,1.50029059,2927.9,2927.1,0.9386635]
[1766571572312,1.50029059,2927.9,2927.2,3.41623394]
[1766571572514,1.50029059,2927.9,2927.3,0.96106117]
[1766571573704,0.9356,2927.8,2927.3,0.96106117]
[1766571574210,0.9356,2927.8,2927.1,3.4378353]
[1766571574211,0.96976117,2927.8,2927.1,0.001]
[1766571574377,0.24358906,2927.7,2927.0,0.002]
[1766571574584,0.03416117,2927.6,2927.0,0.002]
[1766571575098,0.03416117,2927.6,2927.0,0.03616467]
[1766571575295,1.02571992,2927.5,2927.1,0.9269]
[1766571575496,0.03416117,2927.7,2927.1,0.9269]
[1766571575702,0.03416117,2927.8,2927.2,0.96106233]
[1766571575897,1.02564277,2927.7,2927.2,0.96106233]
[1766571576306,0.03416117,2927.6,2927.2,0.96106233]
[1766571578985,0.03416117,2927.6,2927.2,0.9269]
[1766571579609,0.03516117,2927.6,2927.2,0.9269]
[1766571583430,4.277e-05,2927.7,2927.3,0.9913]
[1766571583620,0.001,2928.3,2927.5,0.9913]
[1766571583821,0.001,2928.3,2927.7,0.9913]
[1766571584130,0.001,2928.3,2927.6,0.05464353]
[1766571584131,0.001,2928.3,2927.9,0.9913]
[1766571586728,0.001,2928.3,2927.9,4.40670486]
[1766571586933,0.001,2928.3,2928.0,1.025453]
[1766571589816,0.001,2928.3,2928.1,0.9913]
[1766571591336,0.6671,2928.6,2928.2,1.02545067]
[1766571591542,0.6671,2928.6,2928.2,0.9913]
[1766571592034,0.002,2928.8,2928.2,1.02545067]
[1766571592334,0.002,2928.8,2928.2,0.9913]
[1766571592535,0.001,2928.3,2928.2,0.9913]
[1766571592738,0.001,2928.3,2928.2,1.77346548]
[1766571593542,0.001,2928.3,2928.2,5.18853275]
[1766571594140,0.001,2928.3,2928.2,5.22268342]
[1766571594938,0.6701,2928.8,2928.2,4.23138342]
[1766571595140,0.6701,2928.8,2928.3,0.9913]
[1766571595714,0.6701,2928.8,2928.3,4.4062487]
[1766571596238,0.002,2928.8,2928.4,0.9913]
[1766571596447,0.001,2928.9,2928.4,1.02544834]
[1766571596944,0.6731,2928.9,2928.4,1.02544834]
[1766571597112,0.6721,2928.8,2928.4,0.9913]
[1766571598640,0.6721,2928.8,2928.3,0.0341495]
[1766571598849,0.6721,2928.8,2928.2,0.9913]
[1766571599337,0.6721,2928.8,2928.2,4.40631094]
[1766571599752,0.6721,2928.8,2928.3,0.9913]
[1766571601044,0.6721,2928.8,2928.3,4.40624713]
[1766571601757,0.6721,2928.8,2928.3,0.9913]
[1766571603652,0.6721,2928.8,2928.2,3.41500152]
[1766571605644,0.6741,2928.8,2928.2,3.41500152]
[1766571607121,0.6741,2928.8,2928.3,0.0341495]
[1766571607323,0.001,2929.0,2928.3,0.81121133]
[1766571607534,0.002,2929.3,2928.6,0.9054]
[1766571607822,0.5993,2929.5,2928.8,0.9054]
[1766571608030,0.5993,2929.5,2929.0,0.9054]
[1766571610454,0.6023,2929.4,2928.8,0.9054]
[1766571610625,0.6023,2929.2,2928.6,0.894]
[1766571610958,0.6023,2929.2,2928.3,1.80215438]
[1766571611162,0.6023,2929.2,2928.3,1.68246183]
[1766571611330,0.6023,2929.2,2928.1,5.34671437]
[1766571611538,0.6023,2928.9,2928.1,4.32152373]
[1766571612148,0.6023,2928.8,2928.1,4.32152373]
[1766571616259,4.49657674,2928.9,2928.2,0.9054]
[1766571617358,5.09887674,2928.9,2928.3,3.41495065]
[1766571617564,5.09887674,2928.9,2928.4,0.9054]
[1766571618468,5.09887674,2928.9,2928.4,0.93954834]
[1766571620374,6.1420038,2928.9,2928.4,0.93954834]
[1766571620868,6.1420038,2928.9,2928.4,0.94054834]
[1766571623473,5.09887674,2928.9,2928.5,0.9054]
[1766571630169,5.09887674,2928.9,2928.5,1e-08]
[1766571630375,0.9243,2928.8,2928.4,0.001]
[1766571635411,0.914052,2928.8,2928.4,0.001]
[1766571640137,0.9038089,2928.8,2928.4,0.001]
[1766571642475,1.44384746,2928.8,2928.4,0.001]
[1766571643471,0.9769,2928.7,2928.4,0.001]
[1766571646160,0.9769,2928.7,2928.2,4.32043414]
[1766571646359,0.9769,2928.7,2928.3,0.0341495]
[1766571651390,0.9769,2928.7,2928.3,0.0351495]
[1766571652657,0.9769,2928.7,2928.3,4.95e-05]
[1766571652860,0.9769,2928.7,2928.1,3.41615083]
[1766571652861,1.01104965,2928.6,2928.1,0.001]
[1766571653169,0.9769,2928.5,2928.1,0.03515183]
[1766571654175,0.9769,2928.5,2928.0,0.001]
[1766571654176,0.9769,2928.3,2928.0,0.001]
[1766571657888,0.9769,2928.3,2927.8,3.415492]
[1766571658093,0.9769,2928.3,2927.8,4.327892]
[1766571659290,0.9769,2928.3,2928.0,0.002]
[1766571659978,0.04268396,2928.5,2928.1,0.9124]
[1766571661189,0.04268105,2928.7,2928.1,0.9124]
[1766571661397,0.9367,2928.5,2928.1,0.9124]
[1766571661692,0.97938396,2928.5,2928.1,0.9124]
[1766571661889,0.04268542,2928.4,2928.1,0.9124]
[1766571662085,0.04268251,2928.6,2928.1,0.9124]
[1766571662486,0.97938251,2928.6,2928.0,0.002]
[1766571662667,0.9367,2928.4,2928.0,0.002]
[1766571662862,0.97938542,2928.4,2928.0,0.002]
[1766571665997,0.97938542,2928.4,2928.0,0.9388]
[1766571665998,0.04268542,2928.4,2928.0,0.9388]
[1766571666201,8.80400634,2928.8,2928.1,0.9368]
[1766571666371,0.88060063,2928.7,2928.3,0.9368]
[1766571666577,0.002,2928.8,2928.4,0.97094834]
[1766571666786,0.02561606,2929.1,2928.2,0.02048586]
[1766571667000,4.49657674,2929.3,2928.5,0.9368]
[1766571667001,0.96231606,2929.2,2928.5,0.9368]
[1766571668106,0.96231606,2929.2,2928.6,0.9368]
[1766571669300,4.49457674,2929.0,2928.4,5.24558975]
[1766571669473,0.9367,2928.9,2928.4,1.8308]
[1766571669802,0.9367,2928.9,2928.4,1.76211978]
[1766571670009,0.9367,2928.7,2928.2,4.35180558]